bitfinex/quotes_BTCUSD_20251102
["timestamp","ask_amount","ask_price","bid_price","bid_amount"]
[1762110929657,1.30984476,110340.0,110330.0,0.00754508]
[1762110931066,1.30984476,110340.0,110330.0,0.02367508]
[1762110933269,1.30984476,110340.0,110330.0,0.20494943]
[1762110934375,1.30984476,110340.0,110330.0,0.21713943]
[1762110934799,1.30984476,110340.0,110330.0,0.21912131]
[1762110935009,1.30984476,110340.0,110330.0,0.08159213]
[1762110938353,1.30984476,110340.0,110330.0,0.03784696]
[1762110942434,1.30984476,110340.0,110330.0,0.00952696]
[1762110947592,1.30984476,110340.0,110330.0,0.02576696]
[1762110949181,1.30984476,110340.0,110330.0,0.03793696]
[1762110950319,1.33430484,110340.0,110330.0,0.03793696]
[1762110950542,1.33430484,110340.0,110330.0,0.06359266]
[1762110950977,1.33430484,110340.0,110330.0,0.03793696]
[1762110951647,1.33430484,110340.0,110330.0,0.00952696]
[1762110954475,0.96416603,110340.0,110330.0,0.00952696]
[1762110955263,0.99677948,110340.0,110330.0,0.00952696]
[1762110955931,0.99677948,110340.0,110330.0,0.02576696]
[1762110956124,0.99677948,110340.0,110330.0,0.05020571]
[1762110956323,0.96416603,110340.0,110330.0,0.05020571]
[1762110956707,0.96416603,110340.0,110330.0,0.06237571]
[1762110956909,0.96416603,110340.0,110330.0,0.08717571]
[1762110958128,0.96416603,110340.0,110330.0,0.26845006]
[1762110958704,0.96416603,110340.0,110330.0,0.08717571]
[1762110959548,0.96416603,110340.0,110330.0,0.26845006]
[1762110960234,0.59352346,110340.0,110330.0,0.26845006]
[1762110960433,0.67504889,110340.0,110330.0,0.26845006]
[1762110962731,0.49379096,110340.0,110330.0,0.26845006]
[1762110962859,0.56906338,110340.0,110330.0,0.63909263]
[1762110963058,0.56906338,110340.0,110330.0,0.26845006]
[1762110965126,0.56906338,110340.0,110330.0,0.08717571]
[1762110965329,0.59352346,110340.0,110330.0,0.08717571]
[1762110965534,0.96416603,110340.0,110330.0,0.06237571]
[1762110965763,0.96416603,110340.0,110330.0,0.00952696]
[1762110971611,0.93692789,110340.0,110330.0,0.00952696]
[1762110973534,0.96954134,110340.0,110330.0,0.00952696]
[1762110974692,1.34018391,110340.0,110330.0,0.00952696]
[1762110974971,1.36742514,110340.0,110330.0,0.00952696]
[1762110975550,1.34296506,110340.0,110330.0,0.00952696]
[1762110975743,1.36705332,110340.0,110330.0,0.00952696]
[1762110976377,1.391508,110340.0,110330.0,0.00952696]
[1762110980527,1.36741974,110340.0,110330.0,0.00952696]
[1762110980989,1.40360202,110340.0,110330.0,0.00952696]
[1762110981254,1.37914734,110340.0,110330.0,0.00952696]
[1762110981477,1.45215577,110340.0,110330.0,0.00952696]
[1762110982545,1.45115577,110340.0,110330.0,0.00352696]
[1762110982913,1.45215577,110340.0,110330.0,0.00352696]
[1762110983119,1.41954232,110340.0,110330.0,0.00252696]
[1762110983316,1.45212715,110340.0,110330.0,0.00252696]
[1762110983533,1.42054232,110340.0,110330.0,0.00252696]
[1762110984296,1.45312168,110340.0,110330.0,0.00252696]
[1762110986040,1.42903342,110340.0,110330.0,0.00252696]
[1762110991275,1.42903342,110340.0,110330.0,0.00432696]
[1762110995244,1.42901024,110340.0,110330.0,0.00432696]
[1762111002321,1.39643088,110340.0,110330.0,0.00432696]
[1762111003079,1.42902439,110340.0,110330.0,0.00432696]
[1762111003284,1.39643088,110340.0,110330.0,0.00432696]
[1762111004657,1.4290319,110340.0,110330.0,0.00432696]
[1762111004862,1.39643088,110340.0,110330.0,0.00432696]
[1762111014879,1.02578831,110340.0,110330.0,0.00432696]
[1762111016379,1.39650356,110340.0,110330.0,0.00432696]
[1762111020931,1.37695943,110340.0,110330.0,0.00432696]
[1762111021136,1.39653056,110340.0,110330.0,0.00432696]
[1762111022862,1.02585165,110340.0,110330.0,0.03281696]
[1762111023075,1.39653056,110340.0,110330.0,0.03281696]
[1762111023277,1.39653056,110340.0,110330.0,0.01681696]
[1762111023593,1.39653056,110340.0,110330.0,0.00432696]
[1762111024603,1.39653056,110340.0,110330.0,0.02032696]
[1762111026897,1.39653056,110340.0,110330.0,0.03281696]
[1762111027315,1.36034828,110340.0,110330.0,0.08127872]
[1762111027520,1.39296655,110340.0,110330.0,0.08127872]
[1762111028169,1.39296655,110340.0,110330.0,0.05623696]
[1762111029594,0.4703508,110340.0,110330.0,0.05623696]
[1762111029731,0.59991216,110340.0,110330.0,0.05623696]
[1762111030076,0.97059107,110340.0,110330.0,0.05623696]
[1762111030287,0.9379728,110340.0,110330.0,0.05623696]
[1762111030517,0.9379728,110340.0,110330.0,0.12107052]
[1762111030727,0.9379728,110340.0,110330.0,0.30234487]
[1762111031840,0.9379728,110340.0,110330.0,0.32958395]
[1762111032053,0.56729389,110340.0,110330.0,0.32958395]
[1762111032255,0.38603596,110340.0,110330.0,0.30234487]
[1762111032663,0.36157113,110340.0,110330.0,0.30234487]
[1762111033013,0.36157113,110340.0,110330.0,0.32958395]
[1762111034045,0.54282906,110340.0,110330.0,0.32958395]
[1762111034241,0.36157113,110340.0,110330.0,0.32958395]
[1762111034801,0.54282906,110340.0,110330.0,0.32958395]
[1762111035446,0.36157113,110340.0,110330.0,0.32958395]
[1762111039236,0.54282906,110340.0,110330.0,0.32958395]
[1762111039443,0.36157113,110340.0,110330.0,0.32958395]
[1762111049870,0.54282906,110340.0,110330.0,0.32958395]
[1762111050066,0.36157113,110340.0,110330.0,0.32958395]
[1762111050868,0.54282906,110340.0,110330.0,0.32958395]
[1762111051271,0.36157113,110340.0,110330.0,0.32958395]
[1762111054210,0.54282906,110340.0,110330.0,0.32958395]
[1762111055259,0.36157113,110340.0,110330.0,0.32958395]
[1762111055462,0.54282906,110340.0,110330.0,0.32958395]
[1762111061502,0.91350797,110340.0,110330.0,0.32958395]
[1762111064499,0.91350797,110340.0,110330.0,0.1483096]
[1762111064655,0.9379728,110340.0,110330.0,0.32958395]
[1762111066022,0.91350797,110340.0,110330.0,0.32958395]
[1762111066669,0.9379728,110340.0,110330.0,0.32958395]
[1762111066869,0.91350797,110340.0,110330.0,0.32958395]
[1762111067208,0.9379728,110340.0,110330.0,0.32958395]
[1762111068023,0.91350797,110340.0,110330.0,0.32958395]
[1762111068220,0.36157113,110340.0,110330.0,0.32958395]
[1762111071096,0.02157113,110340.0,110330.0,0.32958395]
[1762111071304,0.002,110340.0,110330.0,0.32958395]
[1762111071890,0.00018734,110340.0,110330.0,0.32958395]
[1762111072282,0.81177547,110350.0,110340.0,0.18125793]
[1762111072492,0.81177547,110350.0,110340.0,0.28483212]
[1762111072872,0.81177547,110350.0,110340.0,0.31206779]
[1762111073060,0.99301697,110350.0,110340.0,0.31206779]
[1762111073483,0.99401697,110350.0,110340.0,0.31206779]
[1762111073724,0.99501697,110350.0,110340.0,0.31206779]
[1762111075019,0.81377547,110350.0,110340.0,0.31206779]
[1762111075219,0.62433806,110350.0,110340.0,0.31206779]
[1762111075862,0.81377547,110350.0,110340.0,0.31206779]
[1762111076356,0.44309656,110350.0,110340.0,0.31206779]
[1762111077148,0.44309656,110350.0,110340.0,0.28483212]
[1762111077731,0.44309656,110350.0,110340.0,0.28659355]
[1762111077968,0.62433806,110350.0,110340.0,0.28659355]
[1762111078281,0.44309656,110350.0,110340.0,0.28659355]
[1762111078483,0.62433806,110350.0,110340.0,0.28659355]
[1762111078684,0.44309656,110350.0,110340.0,0.28659355]
[1762111079100,0.62433806,110350.0,110340.0,0.28659355]
[1762111079306,0.62333806,110350.0,110340.0,0.28659355]
[1762111079465,0.62333806,110350.0,110340.0,0.28983355]
[1762111079887,0.62333806,110350.0,110340.0,0.29083355]
[1762111081484,0.44209656,110350.0,110340.0,0.29083355]
[1762111083324,0.62333806,110350.0,110340.0,0.29083355]
[1762111083546,0.44209656,110350.0,110340.0,0.29083355]
[1762111085606,0.62333806,110350.0,110340.0,0.29083355]
[1762111088333,0.99384002,110350.0,110340.0,0.11033562]
[1762111089320,1.01830485,110350.0,110340.0,0.11033562]
[1762111089960,0.99384002,110350.0,110340.0,0.11033562]
[1762111090193,1.01830485,110350.0,110340.0,0.00676143]
[1762111090655,1.04239311,110350.0,110340.0,0.00676143]
[1762111090878,1.05054655,110350.0,110340.0,0.00676143]
[1762111091816,1.08672883,110350.0,110340.0,0.00676143]
[1762111092258,1.08672883,110350.0,110340.0,0.00576143]
[1762111092482,1.11396925,110350.0,110340.0,0.00576143]
[1762111092706,1.11296925,110350.0,110340.0,0.00176143]
[1762111093812,1.13740172,110350.0,110340.0,0.00176143]
[1762111098827,1.13736106,110350.0,110340.0,0.00176143]
[1762111104647,1.1132728,110350.0,110340.0,0.00176143]
[1762111109825,1.08884894,110350.0,110340.0,0.00176143]
[1762111111476,1.4593509,110350.0,110340.0,0.00176143]
[1762111111685,1.53235933,110350.0,110340.0,0.00176143]
[1762111112426,1.53635933,110350.0,110340.0,0.00276143]
[1762111112632,1.16585737,110350.0,110340.0,0.00276143]
[1762111113569,1.16185737,110350.0,110340.0,0.00176143]
[1762111113733,1.16385737,110350.0,110340.0,0.00176143]
[1762111113932,1.16585737,110350.0,110340.0,0.00276143]
[1762111114362,1.16785737,110350.0,110340.0,0.00276143]
[1762111115048,1.1189372,110350.0,110340.0,0.00276143]
[1762111115236,1.16785737,110350.0,110340.0,0.00276143]
[1762111115666,1.14376911,110350.0,110340.0,0.00276143]
[1762111118082,0.77326715,110350.0,110340.0,0.00276143]
[1762111118295,1.09484894,110350.0,110340.0,0.00276143]
[1762111119310,1.14376911,110350.0,110340.0,0.00276143]
[1762111121805,1.14379588,110350.0,110340.0,0.00276143]
[1762111125541,1.14379588,110350.0,110340.0,0.00276143]
[1762111127650,1.09487571,110350.0,110340.0,0.00276143]
[1762111127830,1.14379588,110350.0,110340.0,0.00276143]
[1762111128087,1.09487571,110350.0,110340.0,0.03045143]
[1762111128298,1.09487571,110350.0,110340.0,0.07706345]
[1762111128736,1.14379588,110350.0,110340.0,0.05306345]
[1762111129795,1.09487571,110350.0,110340.0,0.05306345]
[1762111133658,1.09487571,110350.0,110340.0,0.03045143]
[1762111134956,1.05869343,110350.0,110340.0,0.03045143]
[1762111135161,1.05869343,110350.0,110340.0,0.05445143]
[1762111135583,1.05869343,110350.0,110340.0,0.03045143]
[1762111138316,1.1076136,110350.0,110340.0,0.03045143]
[1762111138537,1.10767706,110350.0,110340.0,0.03045143]
[1762111138961,1.05875689,110350.0,110340.0,0.03045143]
[1762111140963,1.10767706,110350.0,110340.0,0.00276143]
[1762111148199,1.47824248,110350.0,110340.0,0.00276143]
[1762111150539,1.50233074,110350.0,110340.0,0.00276143]
[1762111151750,1.47509032,110350.0,110340.0,0.00276143]
[1762111152853,1.44247205,110350.0,110340.0,0.00276143]
[1762111157268,1.41838379,110350.0,110340.0,0.00276143]
[1762111165048,1.4510137,110350.0,110340.0,0.00276143]
[1762111167158,1.41838379,110350.0,110340.0,0.00276143]
[1762111167569,1.08045071,110350.0,110340.0,0.00276143]
[1762111169496,1.04781837,110350.0,110340.0,0.00276143]
[1762111169698,1.08045156,110350.0,110340.0,0.00276143]
[1762111169829,1.04781837,110350.0,110340.0,0.00276143]
[1762111171461,1.07190663,110350.0,110340.0,0.00276143]
[1762111172094,1.47865433,110350.0,110340.0,0.00276143]
[1762111172510,1.5058948,110350.0,110340.0,0.00276143]
[1762111180654,1.48180654,110350.0,110340.0,0.00276143]
[1762111182801,1.11124112,110350.0,110340.0,0.00276143]
[1762111185820,1.48180654,110350.0,110340.0,0.00276143]
[1762111186030,1.11124112,110350.0,110340.0,0.00276143]
[1762111186269,0.7406757,110350.0,110340.0,0.00276143]
[1762111186477,1.14386835,110350.0,110340.0,0.00276143]
[1762111190207,1.14386835,110350.0,110340.0,0.01925143]
[1762111190619,1.14386835,110350.0,110340.0,0.00276143]
[1762111195267,0.77330293,110350.0,110340.0,0.01925143]
[1762111195444,1.14386835,110350.0,110340.0,0.01925143]
[1762111197599,1.14386835,110350.0,110340.0,0.00276143]
[1762111198405,1.1438895,110350.0,110340.0,0.00276143]
[1762111198824,1.10770722,110350.0,110340.0,0.03097143]
[1762111199038,1.1438895,110350.0,110340.0,0.05524143]
[1762111199257,1.09496933,110350.0,110340.0,0.05524143]
[1762111199460,1.09496933,110350.0,110340.0,0.03097143]
[1762111199852,1.09497325,110350.0,110340.0,0.03097143]
[1762111201485,1.09497325,110350.0,110340.0,0.01448143]
[1762111202347,1.09497325,110350.0,110340.0,0.00276143]
[1762111202594,1.14389342,110350.0,110340.0,0.00276143]
[1762111203576,1.16798168,110350.0,110340.0,0.00276143]
[1762111212745,1.13535445,110350.0,110340.0,0.00276143]
[1762111213771,1.16797206,110350.0,110340.0,0.00276143]
[1762111217943,1.13535445,110350.0,110340.0,0.00276143]
[1762111218728,1.52218892,110350.0,110340.0,0.00276143]
[1762111218910,0.54534619,110340.0,110330.0,0.00234508]
[1762111219114,1.35501172,110340.0,110330.0,0.00234508]
[1762111219656,1.36697172,110340.0,110330.0,0.00234508]
[1762111221216,1.36797172,110340.0,110330.0,0.00234508]
[1762111221623,1.34388346,110340.0,110330.0,0.00234508]
[1762111221998,1.37547298,110340.0,110330.0,0.00234508]
[1762111222220,0.63429984,110340.0,110330.0,0.00234508]
[1762111222379,1.38247298,110340.0,110330.0,0.00334508]
[1762111224581,1.38247298,110340.0,110330.0,0.00356545]
[1762111225905,1.47229199,110340.0,110330.0,0.00356545]
[1762111228825,1.38247298,110340.0,110330.0,0.00356545]
[1762111241933,1.36123138,110340.0,110330.0,0.00356545]
[1762111242085,1.42639945,110340.0,110330.0,0.00356545]
[1762111242288,0.52127435,110330.0,110320.0,0.0004]
[1762111242488,1.04183315,110330.0,110320.0,0.00088399]
[1762111242896,1.06908089,110330.0,110320.0,0.00088399]
[1762111243214,1.09316915,110330.0,110320.0,0.00088399]
[1762111243471,1.09416915,110330.0,110320.0,0.00088399]
[1762111245378,1.18398816,110330.0,110320.0,0.00088399]
[1762111245612,1.18396675,110330.0,110320.0,0.00088399]
[1762111245817,1.55455332,110330.0,110320.0,0.00088399]
[1762111246020,1.57084436,110330.0,110320.0,0.00088399]
[1762111246594,1.19925779,110330.0,110320.0,0.00088399]
[1762111247005,1.20825779,110330.0,110320.0,0.00188399]
[1762111247412,1.15862106,110330.0,110320.0,0.00188399]
[1762111247978,1.15862106,110330.0,110320.0,0.00210439]
[1762111248182,1.09345299,110330.0,110320.0,0.00210439]
[1762111248614,1.15862106,110330.0,110320.0,0.00210439]
[1762111249137,1.09345299,110330.0,110320.0,0.00210439]
[1762111250787,1.12651185,110330.0,110320.0,0.00210439]
[1762111251216,1.17533766,110330.0,110320.0,0.00210439]
[1762111251621,1.1422788,110330.0,110320.0,0.00210439]
[1762111253841,1.11819054,110330.0,110320.0,0.00210439]
[1762111255098,1.06936473,110330.0,110320.0,0.00210439]
[1762111256424,1.11817455,110330.0,110320.0,0.00210439]
[1762111257601,1.36267455,110330.0,110320.0,0.00210439]
[1762111257818,1.45249356,110330.0,110320.0,0.00210439]
[1762111258413,1.36267455,110330.0,110320.0,0.00210439]
[1762111260113,1.38676281,110330.0,110320.0,0.00210439]
[1762111260524,1.75783008,110330.0,110320.0,0.00210439]
[1762111261253,1.70902026,110330.0,110320.0,0.00210439]
[1762111263627,2.07984718,110330.0,110320.0,0.00210439]
[1762111263786,2.16966619,110330.0,110320.0,0.00210439]
[1762111265460,1.79883927,110330.0,110320.0,0.00210439]
[1762111265622,1.93516618,110330.0,110320.0,0.00210439]
[1762111265825,2.00033425,110330.0,110320.0,0.00210439]
[1762111267388,1.66995383,110320.0,110310.0,0.0004]
[1762111267612,1.79802679,110320.0,110310.0,0.00048761]
[1762111268030,1.81039679,110320.0,110310.0,0.00048761]
[1762111268672,1.81439679,110320.0,110310.0,0.00148761]
[1762111269456,2.06089679,110320.0,110310.0,0.00148761]
[1762111270960,2.00121225,110320.0,110310.0,0.00148761]
[1762111272166,1.95237219,110320.0,110310.0,0.00148761]
[1762111272591,2.00127499,110320.0,110310.0,0.00148761]
[1762111273177,2.00127499,110320.0,110310.0,0.00170804]
[1762111274173,1.95237219,110320.0,110310.0,0.00170804]
[1762111274364,2.0421912,110320.0,110310.0,0.00170804]
[1762111274612,2.09110853,110320.0,110310.0,0.00170804]
[1762111275199,2.0421912,110320.0,110310.0,0.00170804]
[1762111279708,1.63047193,110320.0,110310.0,0.00170804]
[1762111282762,1.61810193,110320.0,110310.0,0.00170804]
[1762111282970,1.61810193,110320.0,110310.0,0.01722804]
[1762111283204,1.61810193,110320.0,110310.0,0.00170804]
[1762111285371,1.61810193,110320.0,110310.0,0.01675804]
[1762111285581,1.61810193,110320.0,110310.0,0.05806284]
[1762111286011,1.61810193,110320.0,110310.0,0.05274804]
[1762111286214,1.61810193,110320.0,110310.0,0.02831804]
[1762111286625,0.87644809,110320.0,110310.0,0.02831804]
[1762111288122,0.87644809,110320.0,110310.0,0.00170804]
[1762111288583,0.90011742,110320.0,110310.0,0.00170804]
[1762111288793,0.90011867,110320.0,110310.0,0.00170804]
[1762111289212,0.85119076,110320.0,110310.0,0.00170804]
[1762111289434,0.85121346,110320.0,110310.0,0.00170804]
[1762111290506,0.94103247,110320.0,110310.0,0.00170804]
[1762111292396,1.00620054,110320.0,110310.0,0.00170804]
[1762111293236,0.94103247,110320.0,110310.0,0.00170804]
[1762111293646,1.00620054,110320.0,110310.0,0.00170804]
[1762111294807,0.91638153,110320.0,110310.0,0.00170804]
[1762111295643,0.85121346,110320.0,110310.0,0.00170804]
[1762111298801,0.82754413,110320.0,110310.0,0.00170804]
[1762111305635,0.87647023,110320.0,110310.0,0.00170804]
[1762111308004,0.87647023,110320.0,110310.0,0.01742804]
[1762111308209,0.87647023,110320.0,110310.0,0.00170804]
[1762111318416,0.90372022,110320.0,110310.0,0.00170804]
[1762111319019,0.90372022,110320.0,110310.0,0.01742804]
[1762111319411,0.87647023,110320.0,110310.0,0.02945804]
[1762111319592,0.87647023,110320.0,110310.0,0.05296804]
[1762111319795,0.87647023,110320.0,110310.0,0.02945804]
[1762111321042,0.87647023,110320.0,110310.0,0.01373804]
[1762111322532,0.87647023,110320.0,110310.0,0.00170804]
[1762111322733,0.96628924,110320.0,110310.0,0.00170804]
[1762111324893,0.90013956,110320.0,110310.0,0.00170804]
[1762111326335,0.85121346,110320.0,110310.0,0.00170804]
[1762111327559,0.90013953,110320.0,110310.0,0.00170804]
[1762111327965,0.8764702,110320.0,110310.0,0.00170804]
[1762111329197,0.90013953,110320.0,110310.0,0.00170804]
[1762111330955,0.8764702,110320.0,110310.0,0.05296804]
[1762111331922,0.90371816,110320.0,110310.0,0.05296804]
[1762111332741,0.93633312,110320.0,110310.0,0.05296804]
[1762111333142,0.93633312,110320.0,110310.0,0.07764014]
[1762111333502,0.88740705,110320.0,110310.0,0.25894736]
[1762111333639,0.91186554,110320.0,110310.0,0.25894736]
[1762111333838,0.66736554,110320.0,110310.0,0.25894736]
[1762111334223,0.66736554,110320.0,110310.0,0.05296804]
[1762111334856,0.68736554,110320.0,110310.0,0.05296804]
[1762111335717,0.68736554,110320.0,110310.0,0.23427526]
[1762111336151,0.68736554,110320.0,110310.0,0.05296804]
[1762111338015,0.59132034,110320.0,110310.0,0.23427526]
[1762111338464,0.59132034,110320.0,110310.0,0.27707808]
[1762111340580,0.59132034,110320.0,110310.0,0.05296804]
[1762111341149,0.59132034,110320.0,110310.0,0.23427526]
[1762111344686,0.59132034,110320.0,110310.0,0.05296804]
[1762111345554,0.59132034,110320.0,110310.0,0.23427526]
[1762111346779,0.59132034,110320.0,110310.0,0.05296804]
[1762111348821,0.61498967,110320.0,110310.0,0.05296804]
[1762111360508,0.64760463,110320.0,110310.0,0.05296804]
[1762111363928,0.64760463,110320.0,110310.0,0.23427526]
[1762111367993,0.64760463,110320.0,110310.0,0.05296804]
[1762111370268,0.64760463,110320.0,110310.0,0.23427526]
[1762111370696,0.64760463,110320.0,110310.0,0.05296804]
[1762111370914,0.6239353,110320.0,110310.0,0.02945804]
[1762111371136,0.59947681,110320.0,110310.0,0.05238804]
[1762111371352,0.62393992,110320.0,110310.0,0.05238804]
[1762111371783,0.64779807,110320.0,110310.0,0.05238804]
[1762111376536,0.64778936,110320.0,110310.0,0.05238804]
[1762111383247,0.64778936,110320.0,110310.0,0.02945804]
[1762111383458,0.64778936,110320.0,110310.0,0.05238804]
[1762111391179,0.62393121,110320.0,110310.0,0.05238804]
[1762111391914,0.65117677,110320.0,110310.0,0.05238804]
[1762111421205,0.65117677,110320.0,110310.0,0.05415804]
[1762111422955,0.67468011,110320.0,110310.0,0.05415804]
[1762111426478,0.67468011,110320.0,110310.0,0.02945804]
[1762111426676,0.67468011,110320.0,110310.0,0.05269804]
[1762111433093,0.71086239,110320.0,110310.0,0.05269804]
[1762111441106,0.50606826,110320.0,110310.0,0.2586504]
[1762111441230,0.43727102,110320.0,110310.0,0.2586504]
[1762111442163,0.43727102,110320.0,110310.0,0.23400526]
[1762111442388,0.43327102,110320.0,110310.0,0.23300526]
[1762111442567,0.40881243,110320.0,110310.0,0.23300526]
[1762111442879,0.40981243,110320.0,110310.0,0.24000526]
[1762111443087,0.40781243,110320.0,110310.0,0.24000526]
[1762111443282,0.40781243,110320.0,110310.0,0.24200526]
[1762111444206,0.58910322,110320.0,110310.0,0.24200526]
[1762111444412,0.40781243,110320.0,110310.0,0.24200526]
[1762111449250,0.40781243,110320.0,110310.0,0.28558113]
[1762111451667,0.38056687,110320.0,110310.0,0.28558113]
[1762111456761,0.04056687,110320.0,110310.0,0.28558113]
[1762111456983,0.021,110320.0,110310.0,0.28558113]
[1762111469820,0.20229079,110320.0,110310.0,0.28558113]
[1762111470028,0.04056445,110320.0,110310.0,0.28558113]
[1762111470230,0.021,110320.0,110310.0,0.28558113]
[1762111481285,0.021,110320.0,110310.0,0.24200526]
[1762111487744,0.021,110320.0,110310.0,0.24194426]
[1762111490353,0.041,110320.0,110310.0,0.24194426]
[1762111511796,0.06824037,110320.0,110310.0,0.24194426]
[1762111515183,0.17414506,110320.0,110310.0,0.24194426]
[1762111515422,0.19374273,110320.0,110310.0,0.2961045]
[1762111516174,0.08783804,110320.0,110310.0,0.2961045]
[1762111516515,0.06824037,110320.0,110310.0,0.2961045]
[1762111517359,0.17414506,110320.0,110310.0,0.2961045]
[1762111517503,0.19374273,110320.0,110310.0,0.2961045]
[1762111519161,0.19374273,110320.0,110310.0,0.24194426]
[1762111519561,0.37503352,110320.0,110310.0,0.24194426]
[1762111520315,0.19374273,110320.0,110310.0,0.24194426]
[1762111520534,0.37503352,110320.0,110310.0,0.24194426]
[1762111521070,0.29964742,110320.0,110310.0,0.24194426]
[1762111522215,0.48093821,110320.0,110310.0,0.24194426]
[1762111523714,0.50505376,110320.0,110310.0,0.24194426]
[1762111525148,0.50505376,110320.0,110310.0,0.24164611]
[1762111525560,0.50505376,110320.0,110310.0,0.28518606]
[1762111528515,0.50505376,110320.0,110310.0,0.24164611]
[1762111532184,0.29964742,110320.0,110310.0,0.24164611]
[1762111533427,0.48093821,110320.0,110310.0,0.24164611]
[1762111533643,0.29964742,110320.0,110310.0,0.24164611]
[1762111534241,0.48093821,110320.0,110310.0,0.24164611]
[1762111538184,0.29964742,110320.0,110310.0,0.24164611]
[1762111539009,0.48093821,110320.0,110310.0,0.24164611]
[1762111540023,0.37503352,110320.0,110310.0,0.24164611]
[1762111541212,0.48093821,110320.0,110310.0,0.24164611]
[1762111542098,0.29964742,110320.0,110310.0,0.24164611]
[1762111542319,0.48093821,110320.0,110310.0,0.24164611]
[1762111542727,0.29964742,110320.0,110310.0,0.24164611]
[1762111543578,0.19374273,110320.0,110310.0,0.24164611]
[1762111543782,0.19374273,110320.0,110310.0,0.28518606]
[1762111546179,0.37503352,110320.0,110310.0,0.28518606]
[1762111547411,0.19374273,110320.0,110310.0,0.28518606]
[1762111547748,0.37503352,110320.0,110310.0,0.28518606]
[1762111548814,0.37503352,110320.0,110310.0,0.24164611]
[1762111549435,0.19374273,110320.0,110310.0,0.24164611]
[1762111549704,0.37503352,110320.0,110310.0,0.24164611]
[1762111551086,0.48093821,110320.0,110310.0,0.24164611]
[1762111554676,0.48093821,110320.0,110310.0,0.21840611]
[1762111555381,0.48093821,110320.0,110310.0,0.24169611]
[1762111564493,0.37505424,110320.0,110310.0,0.24169611]
[1762111567881,0.19376345,110320.0,110310.0,0.24169611]
[1762111568298,0.08783804,110320.0,110310.0,0.28524106]
[1762111568498,0.06824037,110320.0,110310.0,0.28524106]
[1762111571446,0.06824037,110320.0,110310.0,0.28515761]
[1762111571643,0.041,110320.0,110310.0,0.28515761]
[1762111591638,0.14692541,110320.0,110310.0,0.24161266]
[1762111591847,0.16652308,110320.0,110310.0,0.24161266]
[1762111592239,0.34781387,110320.0,110310.0,0.24161266]
[1762111592449,0.16652308,110320.0,110310.0,0.24161266]
[1762111592937,0.34781387,110320.0,110310.0,0.24161266]
[1762111593291,0.16652308,110320.0,110310.0,0.24161266]
[1762111595325,0.34781387,110320.0,110310.0,0.24161266]
[1762111597537,0.16652308,110320.0,110310.0,0.24161266]
[1762111598041,0.34781387,110320.0,110310.0,0.24161266]
[1762111599606,0.16652308,110320.0,110310.0,0.24161266]
[1762111601595,0.34781387,110320.0,110310.0,0.24161266]
[1762111601810,0.16652308,110320.0,110310.0,0.24161266]
[1762111602010,0.34781387,110320.0,110310.0,0.24161266]
[1762111606321,0.24188846,110320.0,110310.0,0.24161266]
[1762111606559,0.34781387,110320.0,110310.0,0.24161266]
[1762111608066,0.34781387,110320.0,110310.0,0.06030544]
[1762111608287,0.34781387,110320.0,110310.0,0.24161266]
[1762111608667,0.34781387,110320.0,110310.0,0.06030544]
[1762111609216,0.34781387,110320.0,110310.0,0.24161266]
[1762111609428,0.34781387,110320.0,110310.0,0.06030544]
[1762111609893,0.34781387,110320.0,110310.0,0.24161266]
[1762111611943,0.3475849,110320.0,110310.0,0.24161266]
[1762111612456,0.3475849,110320.0,110310.0,0.28514927]
[1762111614458,0.3475849,110320.0,110310.0,0.08055205]
[1762111615421,0.3475849,110320.0,110310.0,0.03701544]
[1762111616200,0.3475849,110320.0,110310.0,0.00926544]
[1762111616381,0.3748292,110320.0,110310.0,0.00926544]
[1762111616885,0.88143397,110320.0,110310.0,0.00926544]
[1762111617061,0.80812352,110320.0,110310.0,0.00926544]
[1762111618570,0.91404893,110320.0,110310.0,0.00926544]
[1762111619016,0.80735249,110320.0,110310.0,0.00226544]
[1762111619215,0.81135249,110320.0,110310.0,0.00326544]
[1762111619459,0.77873753,110320.0,110310.0,0.00326544]
[1762111619615,0.81135249,110320.0,110310.0,0.00326544]
[1762111619811,0.81135249,110320.0,110310.0,0.00126544]
[1762111620041,0.81335249,110320.0,110310.0,0.00126544]
[1762111622379,0.78073753,110320.0,110310.0,0.00126544]
[1762111624421,1.52247556,110320.0,110310.0,0.00126544]
[1762111629591,1.97042142,110320.0,110310.0,0.00126544]
[1762111629798,2.00303638,110320.0,110310.0,0.00126544]
[1762111634259,3.25003446,110320.0,110310.0,0.00126544]
[1762111634462,3.31589992,110320.0,110310.0,0.00126544]
[1762111634661,3.28328496,110320.0,110310.0,0.00126544]
[1762111634919,3.37310397,110320.0,110310.0,0.00126544]
[1762111635121,2.10160881,110320.0,110310.0,0.00126544]
[1762111638637,3.37310397,110320.0,110310.0,0.00126544]
[1762111639007,2.10160881,110320.0,110310.0,0.00126544]
[1762111639246,3.37310397,110320.0,110310.0,0.00126544]
[1762111639458,3.37293598,110320.0,110310.0,0.00126544]
[1762111639651,3.3241779,110320.0,110310.0,0.00126544]
[1762111640332,3.32408334,110320.0,110310.0,0.00126544]
[1762111640886,3.37283817,110320.0,110310.0,0.00126544]
[1762111641163,2.10134301,110320.0,110310.0,0.00126544]
[1762111641329,3.37283817,110320.0,110310.0,0.00126544]
[1762111642130,2.10134301,110320.0,110310.0,0.00126544]
[1762111644641,2.34584301,110320.0,110310.0,0.00126544]
[1762111645391,2.29708818,110320.0,110310.0,0.00126544]
[1762111646351,3.56858334,110320.0,110310.0,0.00126544]
[1762111646576,2.29708818,110320.0,110310.0,0.00126544]
[1762111646784,3.56858334,110320.0,110310.0,0.00126544]
[1762111648336,3.62775141,110320.0,110310.0,0.00026544]
[1762111648673,3.68624141,110320.0,110310.0,0.00026544]
[1762111648900,3.63175141,110320.0,110310.0,0.00026544]
[1762111649609,3.63675141,110320.0,110310.0,0.00126544]
[1762111650763,3.39225141,110320.0,110310.0,0.00126544]
[1762111652508,2.12075625,110320.0,110310.0,0.00126544]
[1762111653658,3.39225141,110320.0,110310.0,0.00126544]
[1762111654070,1.8530988,110310.0,110300.0,0.0004]
[1762111654250,2.11427019,110310.0,110300.0,0.00044829]
[1762111654642,0.18137299,110270.0,110260.0,0.22756006]
[1762111654841,0.60520471,110270.0,110260.0,0.24283842]
[1762111656918,0.60520471,110270.0,110260.0,0.24783842]
[1762111657128,0.60520471,110270.0,110260.0,0.24283842]
[1762111657355,0.60720471,110270.0,110260.0,0.25583842]
[1762111657530,0.42583172,110270.0,110260.0,0.30518993]
[1762111658361,0.43492116,110270.0,110260.0,0.30518993]
[1762111658554,0.43292116,110270.0,110260.0,0.29218993]
[1762111658750,0.61429415,110270.0,110260.0,0.24583842]
[1762111658950,0.61629415,110270.0,110260.0,0.25483842]
[1762111660777,0.43492116,110270.0,110260.0,0.25483842]
[1762111661218,0.61629415,110270.0,110260.0,0.25594112]
[1762111667050,0.43492116,110270.0,110260.0,0.25594112]
[1762111667262,0.43492116,110270.0,110260.0,0.3023029]
[1762111667470,0.61629415,110270.0,110260.0,0.3023029]
[1762111668297,0.43492116,110270.0,110260.0,0.3023029]
[1762111668463,0.61629415,110270.0,110260.0,0.3023029]
[1762111669273,0.02608134,110270.0,110260.0,1.14996634]